fUST/lending_fUST_20241104
["ID","MTS","AMOUNT","RATE_DAILY","PERIOD"]
[341254666,1730727046419,-153.0,0.00032575,2]
[341254667,1730727046428,-153.0,0.00032575,2]
[341254668,1730727046438,-190.0,0.00032575,2]
[341254669,1730727046447,-190.0,0.00032575,2]
[341254670,1730727046456,-190.0,0.00032575,2]
[341254671,1730727046466,-190.0,0.00032575,2]
[341254672,1730727046475,-190.0,0.00032575,2]
[341254673,1730727046485,-190.0,0.00032575,2]
[341254674,1730727046495,-190.0,0.00032575,2]
[341254675,1730727046505,-190.0,0.00032575,2]
[341254676,1730727046514,-190.0,0.00032575,2]
[341254677,1730727046524,-190.0,0.00032575,2]
[341254678,1730727046533,-190.0,0.00032575,2]
[341254679,1730727046543,-190.0,0.00032575,2]
[341254680,1730727046552,-190.0,0.00032575,2]
[341254681,1730727046562,-190.0,0.00032575,2]
[341254682,1730727046571,-153.0,0.00032575,2]
[341254683,1730727046580,-153.0,0.00032575,2]
[341254684,1730727046589,-190.0,0.00032575,2]
[341254685,1730727046598,-190.0,0.00032575,2]
[341254686,1730727046608,-190.0,0.00032575,2]
[341254687,1730727046618,-190.0,0.00032575,2]
[341254688,1730727046628,-190.0,0.00032575,2]
[341254689,1730727046637,-190.0,0.00032575,2]
[341254690,1730727046647,-190.0,0.00032575,2]
[341254691,1730727046656,-190.0,0.00032575,2]
[341254692,1730727046665,-190.0,0.00032575,2]
[341254693,1730727046675,-190.0,0.00032575,2]
[341254694,1730727046684,-190.0,0.00032575,2]
[341254695,1730727046693,-190.0,0.00032575,2]
[341254696,1730727046703,-190.0,0.00032575,2]
[341254697,1730727046712,-190.0,0.00032575,2]
[341254698,1730727046722,-153.0,0.00032575,2]
[341254699,1730727046732,-190.0,0.00032575,2]
[341254700,1730727046742,-190.0,0.00032575,2]
[341254701,1730727046752,-190.0,0.00032575,2]
[341254702,1730727046761,-190.0,0.00032575,2]
[341254703,1730727046771,-190.0,0.00032575,2]
[341254704,1730727046780,-190.0,0.00032575,2]
[341254705,1730727046789,-190.0,0.00032575,2]
[341254706,1730727046798,-190.0,0.00032575,2]
[341254707,1730727046808,-190.0,0.00032575,2]
[341254708,1730727046817,-190.0,0.00032575,2]
[341254709,1730727046827,-150.112233,0.000326,18]
[341254710,1730727046837,-150.112233,0.000326,20]
[341254711,1730727046846,-150.112233,0.000326,20]
[341254712,1730727046856,-500.0,0.00032714,120]
[341254713,1730727046866,-500.0,0.00032714,120]
[341254714,1730727046875,-300.53,0.00032714,120]
[341254715,1730727046885,-500.0,0.00032714,120]
[341254716,1730727046896,-1841.76505731,0.000328,7]
[341254717,1730727046906,-500.0,0.000328,120]
[341254718,1730727046916,-184.0,0.000328,6]
[341254719,1730727046926,-514.0,0.000328,2]
[341254720,1730727046936,-600.0,0.00032832,2]
[341254721,1730727046947,-151.0,0.00032849,120]
[341254722,1730727046957,-500.0,0.00032873,5]
[341254723,1730727046966,-411.05052998,0.00032873,5]
[341254724,1730727046976,-500.0,0.00032876,4]
[341254725,1730727046986,-500.0,0.00032876,4]
[341254726,1730727047000,-500.0,0.00032876,4]
[341254727,1730727047010,-500.0,0.00032876,4]
[341254728,1730727047019,-500.0,0.00032876,4]
[341254729,1730727047029,-503.493079,0.00032876,4]
[341254730,1730727047040,-500.0,0.00032876,4]
[341254731,1730727047049,-505.233571,0.00032876,4]
[341254732,1730727047060,-525.7779415,0.00032876,4]
[341254733,1730727047069,-500.0,0.00032876,4]
[341254734,1730727047079,-500.0,0.00032876,4]
[341254735,1730727047088,-507.27518845,0.00032876,4]
[341254736,1730727047097,-500.0,0.00032876,4]
[341254737,1730727047109,-251.34457677,0.00032876,4]
[341254738,1730727047119,-188.20184775,0.00032876,4]
[341254739,1730727047128,-500.0,0.00032876,4]
[341254740,1730727047138,-506.85053539,0.00032876,4]
[341254741,1730727047148,-507.65509799,0.00032876,4]
[341254742,1730727047157,-504.03135058,0.00032876,4]
[341254743,1730727047166,-512.64768619,0.00032876,4]
[341254744,1730727047176,-500.0,0.00032876,4]
[341254745,1730727047186,-508.80888844,0.00032876,4]
[341254746,1730727047195,-500.95306316,0.00032876,4]
[341254747,1730727047205,-503.76966058,0.00032876,2]
[341254748,1730727047215,-200.0,0.00032876,4]
[341254749,1730727047225,-500.0,0.00032876,4]
[341254750,1730727047236,-514.85078792,0.00032876,4]
[341254751,1730727047247,-525.1208139,0.00032876,4]
[341254752,1730727047257,-200.0,0.00032876,4]
[341254753,1730727047267,-500.0,0.00032876,4]
[341254754,1730727047277,-471.77464326,0.00032876,4]
[341254755,1730727047287,-510.57547254,0.00032876,4]
[341254756,1730727047297,-521.60382951,0.00032876,4]
[341254757,1730727047306,-500.0,0.00032876,4]
[341254758,1730727047315,-526.44903685,0.00032876,4]
[341254759,1730727047325,-500.0,0.00032876,4]
[341254760,1730727047334,-514.98937248,0.00032876,4]
[341254761,1730727047344,-500.0,0.00032876,4]
[341254762,1730727047353,-517.00703044,0.00032876,4]
[341254763,1730727047363,-512.75980229,0.00032876,4]
[341254764,1730727047372,-507.50258595,0.00032876,4]
[341254765,1730727047382,-500.0,0.00032876,4]
[341254766,1730727047392,-508.54593334,0.00032876,4]
[341254767,1730727047464,-523.89328639,0.00032876,4]
[341254768,1730727047474,-500.0,0.00032876,4]
[341254769,1730727047484,-539.23094554,0.00032876,4]
[341254770,1730727047496,-500.0,0.00032876,4]
[341254771,1730727047506,-500.0,0.00032876,4]
[341254772,1730727047516,-500.0,0.00032876,4]
[341254773,1730727047526,-500.0,0.00032876,4]
[341254774,1730727047536,-500.0,0.00032876,4]
[341254775,1730727047546,-500.0,0.00032876,4]
[341254776,1730727047555,-500.0,0.00032876,4]
[341254777,1730727047566,-500.0,0.00032876,4]
[341254778,1730727047575,-500.0,0.00032876,4]
[341254779,1730727047584,-500.0,0.00032876,4]
[341254780,1730727047593,-506.56958329,0.00032876,4]
[341254781,1730727047603,-174.16146396,0.00032876,4]
[341254782,1730727047680,-968.236351,0.00032876,4]
[341254783,1730727047804,-188.82835451,0.00028625,5]
[341254784,1730727047813,-500.0,0.00032873,5]
[341254785,1730727047823,-884.32218504,0.00032876,4]
[341254786,1730727047832,-337.12533035,0.00032876,4]
[341254802,1730727430126,159.624531,0.00013973,2]
[341254816,1730728035420,-159.624531,0.00020447,2]
[341254817,1730728035448,-171.919837,0.0002527,2]
[341254818,1730728035477,-591.8210663,0.00025707,2]
[341254819,1730728035503,-1116.6808122,0.00025962,2]
[341254820,1730728035533,-300.0,0.0002597,2]
[341254821,1730728035561,-283.76150105,0.0002597,2]
[341254822,1730728047157,-16.23849895,0.0002597,2]
[341254823,1730728047178,-2707.08300292,0.00025971,2]
[341254834,1730728232790,-166.475151,0.00025327,2]
[341254835,1730728232800,-561.41299939,0.00025472,2]
[341254859,1730728243613,-24338.58700061,0.00025472,2]
[341254860,1730728243623,-486.4691184,0.00025709,2]
[341254861,1730728243633,-129.71488447,0.00025894,2]
[341254864,1730728246593,-809.48035453,0.00025894,2]
[341254865,1730728246603,-5685.29533428,0.00025971,2]
[341254866,1730728246612,-250.0,0.00025998,2]
[341254867,1730728246622,-203.4166257,0.00026065,2]
[341254868,1730728246631,-1161.281771,0.00026132,2]
[341254869,1730728246640,-300.0,0.00026266,2]
[341254870,1730728246649,-300.0,0.00026267,2]
[341254871,1730728246659,-2829.9411798,0.00026268,2]
[341254872,1730728246669,-1161.281771,0.00026817,2]
[341254873,1730728246679,-159.624531,0.00026921,2]
[341254874,1730728246690,-160.64229731,0.00026927,2]
[341254875,1730728246699,-500.0,0.00026927,2]
[341254876,1730728246709,-500.0,0.00026927,2]
[341254878,1730728246719,-500.0,0.00026927,2]
[341254880,1730728246729,-500.0,0.00026927,2]
[341254882,1730728246739,-406.35198642,0.00026927,2]
[341254884,1730728246748,-500.0,0.00026927,2]
[341254885,1730728246757,-247.4672415,0.00026927,2]
[341254886,1730728246767,-500.0,0.00026927,2]
[341254887,1730728246777,-500.0,0.00026927,2]
[341254888,1730728246786,-500.0,0.00026927,2]
[341254889,1730728246795,-370.88567863,0.00026927,2]
[341254890,1730728246804,-500.0,0.00026927,2]
[341254891,1730728246814,-443.42933979,0.00026927,2]
[341254892,1730728246823,-315.42590323,0.00026927,2]
[341254893,1730728246833,-500.0,0.00026927,2]
[341254894,1730728246842,-500.0,0.00026927,2]
[341254895,1730728246852,-591.19202514,0.00026927,2]
[341254896,1730728246864,-79.45895847,0.00026927,2]
[341254897,1730728246876,-419.52770081,0.00026927,2]
[341254898,1730728246988,-1.01334072,0.00026927,2]
[341254899,1730728246997,-301.57793727,0.00026927,2]
[341254907,1730728576603,159.624531,0.00013973,2]
[341254915,1730729171599,150.0,0.00018,2]
[341254916,1730729173070,150.0,0.00014,2]
[341254917,1730729173553,150.0,0.0001,2]
[341254918,1730729228226,-150.0,0.00021,2]
[341254919,1730729228248,-171.16007025,0.00021561,2]
[341254920,1730729228271,-300.0,0.00021599,2]
[341254921,1730729228295,-300.0,0.00021599,2]
[341254922,1730729228316,-2115.8639143,0.000216,2]
[341254923,1730729336176,159.624531,0.00013973,2]
[341254924,1730729365106,-300.0,0.00021599,2]
[341254925,1730729365132,-1897.72621609,0.000216,2]
[341254946,1730729435999,-8559.40986961,0.000216,2]
[341254948,1730729436009,-159.624531,0.00022174,2]
[341254950,1730729436019,-300.0,0.00022787,2]
[341254952,1730729436028,-3000.0,0.00022788,2]
[341254954,1730729436038,-2318.5255057,0.00023522,2]
[341254956,1730729436048,-152.0,0.00023756,2]
[341254958,1730729436058,-2614.315791,0.00024207,2]
[341254960,1730729436067,-250.0,0.00024472,2]
[341254961,1730729436076,-427.64213475,0.00024472,2]
[341254962,1730729436085,-500.0,0.00024472,2]
[341254963,1730729436094,-593.74132561,0.00024472,2]
[341254964,1730729436104,-500.0,0.00024472,2]
[341254965,1730729436117,-500.0,0.00024472,2]
[341254966,1730729436126,-124.14426633,0.00024472,2]
[341254967,1730729436137,-375.85573367,0.00024472,2]
[341254968,1730729436146,-500.0,0.00024472,2]
[341254969,1730729436156,-500.0,0.00024472,2]
[341254970,1730729436165,-500.0,0.00024472,2]
[341254971,1730729436175,-500.0,0.00024472,2]
[341254972,1730729436184,-500.0,0.00024472,2]
[341254973,1730729436193,-345.87061971,0.00024472,2]
[341254974,1730729436203,-500.0,0.00024472,2]
[341254975,1730729436212,-500.0,0.00024472,2]
[341254976,1730729436221,-500.0,0.00024472,2]
[341254977,1730729436230,-500.0,0.00024472,2]
[341254978,1730729436240,-500.0,0.00024472,2]
[341254979,1730729436249,-500.0,0.00024472,2]
[341254980,1730729436259,-500.0,0.00024472,2]
[341254981,1730729436269,-142.76364662,0.00024472,2]
[341255064,1730729437962,-357.23635338,0.00024472,2]
[341255066,1730729437972,-2147.2811681,0.00024474,2]
[341255067,1730729437982,-469.597619,0.00024542,2]
[341255068,1730729437992,-190.6312074,0.00024578,2]
[341255069,1730729438002,-250.0,0.00024578,2]
[341255070,1730729438012,-250.0,0.00024658,2]
[341255071,1730729438021,-420.0,0.00024742,2]
[341255072,1730729438031,-241.60184233,0.00024833,2]
[341255073,1730729438040,-2614.315791,0.00024892,2]
[341255074,1730729438049,-621.71842867,0.0002492,2]
[341255075,1730729438060,-500.0,0.0002492,2]
[341255076,1730729438069,-503.45751418,0.0002492,2]
[341255077,1730729438079,-506.1997249,0.0002492,2]
[341255078,1730729438089,-166.666666,0.00024934,2]
[341255079,1730729438098,-150.0,0.00025,2]
[341255080,1730729438108,-150.0,0.00025,30]
[341255081,1730729438118,-502.6661399,0.0002512,2]
[341255082,1730729438128,-500.0,0.0002512,2]
[341255083,1730729438137,-627.0,0.00025204,2]
[341255084,1730729438147,-490.62849696,0.00025576,2]
[341255085,1730729438156,-2505.4328404,0.00025576,2]
[341255086,1730729438169,-108.8829506,0.00025576,2]
[341255088,1730729438179,-500.0,0.0002575,2]
[341255089,1730729438189,-298.2638634,0.0002575,2]
[341255091,1730729438199,-166.666666,0.00025784,2]
[341255092,1730729438208,-1000.0,0.00026,2]
[341255093,1730729438217,-1000.0,0.0002629,2]
[341255095,1730729438226,-166.666666,0.00026634,2]
[341255097,1730729438236,-587.0,0.00026865,2]
[341255099,1730729438246,-294.44225212,0.00026903,2]
[341255101,1730729438256,-198.028102,0.00026903,2]
[341255103,1730729438266,-4944.70573877,0.00026904,2]
[341255105,1730729438275,-10733.81667511,0.00026906,2]
[341255107,1730729438287,-1372.3210291,0.00026906,2]
[341255110,1730729438305,-7011.39655109,0.00026906,2]
[341255113,1730729438317,-619.69894878,0.00026906,2]
[341255115,1730729438328,-614.45859368,0.00026906,2]
[341255117,1730729438340,-2546.0,0.00026906,2]
[341255120,1730729438362,-2002.30820224,0.00026906,2]
[341255122,1730729438371,-163.0,0.00027,2]
[341255124,1730729438381,-3003.53810624,0.00027015,2]
[341255126,1730729438391,-170.979708,0.00027115,2]
[341255128,1730729438400,-166.666666,0.00027483,2]
[341255130,1730729438409,-256.4027161,0.00027522,2]
[341255132,1730729438420,-150.0,0.00028,30]
[341255134,1730729438429,-166.666666,0.00028333,2]
[341255136,1730729438438,-150.0,0.00028438,2]
[341255138,1730729438448,-529.0,0.00028438,2]
[341255140,1730729438458,-1141.0,0.00028438,2]
[341255142,1730729438467,-2393.0,0.00028438,2]
[341255144,1730729438476,-1778.22092091,0.00028717,2]
[341255146,1730729438486,-163.0,0.00028767,2]
[341255148,1730729438495,-653.24421072,0.00028795,2]
[341255150,1730729438504,-150.0,0.00029,2]
[341255152,1730729438513,-162.250559,0.00029047,2]
[341255154,1730729438523,-162.250559,0.00029071,2]
[341255156,1730729438532,-162.250559,0.00029095,2]
[341255158,1730729438542,-181.40327637,0.00029095,21]
[341255160,1730729438551,-162.250559,0.00029119,2]
[341255162,1730729438560,-686.35221441,0.00029141,2]
[341255309,1730729439894,-2317.18589177,0.00029141,2]
[341255312,1730729439905,-162.250559,0.00029144,2]
[341255314,1730729439915,-162.250559,0.00029168,2]
[341255316,1730729439924,-823.0,0.0002917,2]
[341255318,1730729439934,-162.250559,0.00029192,2]
[341255320,1730729439944,-158.004,0.0002955,2]
[341255322,1730729439954,-2810.1102195,0.0003,3]
[341255324,1730729439963,-163.0,0.0003,2]
[341255326,1730729439973,-273.69636814,0.0003,2]
[341255328,1730729439982,-500.0,0.00030137,2]
[341255330,1730729439991,-594.41291431,0.00030137,2]
[341255332,1730729440001,-233.55,0.00030157,3]
[341255334,1730729440011,-159.624531,0.00030374,2]
[341255336,1730729440020,-150.0,0.00031,30]
[341255346,1730729440109,-700.69,0.00031258,3]
[341255348,1730729440122,-3003.53810618,0.00031268,2]
[341255350,1730729440131,-388.22,0.00031335,10]
[341255352,1730729440140,-332.554161,0.00031346,2]
[341255354,1730729440149,-784.96906,0.00031346,2]
[341255356,1730729440158,-161.629947,0.00031346,2]
[341255358,1730729440168,-150.0,0.00031438,2]
[341255361,1730729440177,-529.0,0.00031438,2]
[341255363,1730729440186,-2393.0,0.00031438,2]
[341255365,1730729440195,-467.1,0.00031527,3]
[341255367,1730729440205,-164.0,0.00031644,2]
[341255369,1730729440214,-1152.0,0.00031672,2]
[341255371,1730729440224,-332.554161,0.00031737,2]
[341255373,1730729440233,-784.96906,0.00031737,2]
[341255375,1730729440242,-160.0,0.00031953,3]
[341255377,1730729440253,-150.0,0.00032,2]
[341255379,1730729440262,-534.6220022,0.00032015,2]
[341255381,1730729440271,-332.554161,0.00032129,2]
[341255383,1730729440280,-784.96906,0.00032129,2]
[341255385,1730729440289,-600.0,0.00032162,2]
[341255387,1730729440299,-1050.21770042,0.00032497,2]
[341255389,1730729440308,-534.6220022,0.00032515,2]
[341255391,1730729440317,-332.554161,0.00032521,2]
[341255393,1730729440327,-784.96906,0.00032521,2]
[341255395,1730729440336,-500.0,0.00032776,2]
[341255397,1730729440347,-1000.0,0.00032776,2]
[341255399,1730729440358,-323.52,0.00032866,10]
[341255401,1730729440370,-500.0,0.00032873,5]
[341255403,1730729440380,-500.0,0.00032873,5]
[341255405,1730729440389,-501.28777618,0.00032873,5]
[341255407,1730729440398,-500.0,0.00032873,5]
[341255409,1730729440408,-2282.56036605,0.00032875,2]
[341255411,1730729440419,-506.18753503,0.00032876,4]
[341255413,1730729440429,-500.0,0.00032876,4]
[341255415,1730729440439,-500.0,0.00032876,4]
[341255417,1730729440448,-500.0,0.00032876,4]
[341255419,1730729440458,-500.0,0.00032876,4]
[341255421,1730729440467,-500.0,0.00032876,4]
[341255423,1730729440477,-410.95233752,0.00032876,4]
[341255425,1730729440486,-500.0,0.00032876,4]
[341255427,1730729440495,-500.0,0.00032876,4]
[341255429,1730729440505,-500.0,0.00032876,4]
[341255431,1730729440514,-500.0,0.00032876,4]
[341255433,1730729440525,-500.0,0.00032876,4]
[341255435,1730729440535,-500.0,0.00032876,4]
[341255437,1730729440545,-455.3171686,0.00032876,4]
[341255439,1730729440554,-500.0,0.00032876,4]
[341255441,1730729440564,-515.99564731,0.00032876,4]
[341255443,1730729440574,-500.0,0.00032876,4]
[341255445,1730729440584,-500.0,0.00032876,4]
[341255447,1730729440595,-500.0,0.00032876,4]
[341255449,1730729440605,-516.8296035,0.00032876,4]
[341255451,1730729440615,-500.0,0.00032876,4]
[341255453,1730729440625,-500.0,0.00032876,4]
[341255456,1730729440634,-515.57914577,0.00032876,4]
[341255457,1730729440644,-505.6449129,0.00032876,4]
[341255458,1730729440653,-502.40516578,0.00032876,4]
[341255459,1730729440663,-500.0,0.00032876,4]
[341255460,1730729440672,-509.53684622,0.00032876,4]
[341255461,1730729440682,-500.0,0.00032876,4]
[341255462,1730729440692,-549.66714667,0.00032876,4]
[341255463,1730729440701,-533.28553957,0.00032876,4]
[341255464,1730729440711,-500.0,0.00032876,4]
[341255465,1730729440721,-470.70763262,0.00032876,4]
[341255466,1730729440730,-500.0,0.00032876,4]
[341255467,1730729440739,-500.0,0.00032876,4]
[341255468,1730729440749,-500.0,0.00032876,4]
[341255469,1730729440758,-570.06167371,0.00032876,4]
[341255470,1730729440768,-500.0,0.00032876,4]
[341255471,1730729440778,-500.0,0.00032876,4]
[341255472,1730729440787,-500.0,0.00032876,4]
[341255473,1730729440796,-507.55311415,0.00032876,4]
[341255474,1730729440806,-500.0,0.00032876,4]
[341255476,1730729440815,-505.74393213,0.00032876,4]
[341255478,1730729440825,-500.0,0.00032876,4]
[341255480,1730729440834,-500.0,0.00032876,4]
[341255481,1730729440844,-505.91585932,0.00032876,4]
[341255483,1730729440853,-500.0,0.00032876,4]
[341255484,1730729440863,-507.87683918,0.00032876,4]
[341255485,1730729440873,-511.67145067,0.00032876,4]
[341255486,1730729440883,-385.6951073,0.00032876,4]
[341255487,1730729440892,-500.0,0.00032876,4]
[341255488,1730729440902,-500.0,0.00032876,4]
[341255489,1730729440911,-500.0,0.00032876,4]
[341255490,1730729440920,-500.0,0.00032876,4]
[341255491,1730729440929,-500.0,0.00032876,4]
[341255492,1730729440938,-500.0,0.00032876,4]
[341255493,1730729440947,-500.0,0.00032876,4]
[341255494,1730729440956,-500.0,0.00032876,4]
[341255495,1730729440966,-500.0,0.00032876,4]
[341255496,1730729440975,-500.0,0.00032876,4]
[341255497,1730729440986,-500.0,0.00032876,4]
[341255498,1730729440995,-500.0,0.00032876,4]
[341255499,1730729441005,-500.0,0.00032876,4]
[341255500,1730729441014,-500.0,0.00032876,4]
[341255501,1730729441024,-314.82318418,0.00032876,4]
[341255502,1730729441033,-565.73,0.00032876,4]
[341255503,1730729441043,-500.0,0.00032876,4]
[341255504,1730729441052,-504.50772396,0.00032876,4]
[341255505,1730729441062,-505.79814864,0.00032876,4]
[341255506,1730729441071,-500.0,0.00032876,4]
[341255507,1730729441081,-525.09223046,0.00032876,4]
[341255508,1730729441090,-536.67964156,0.00032876,4]
[341255509,1730729441099,-500.0,0.00032876,4]
[341255510,1730729441109,-508.23000225,0.00032876,4]
[341255511,1730729441119,-404.89577467,0.00032876,4]
[341255512,1730729441129,-500.0,0.00032876,4]
[341255513,1730729441138,-151.0,0.00032876,7]
[341255514,1730729441147,-500.0,0.00032876,4]
[341255515,1730729441157,-506.28046238,0.00032876,4]
[341255516,1730729441167,-512.56211605,0.00032876,4]
[341255517,1730729441176,-522.99231848,0.00032876,4]
[341255518,1730729441185,-616.67115962,0.00032876,4]
[341255519,1730729441195,-500.0,0.00032876,4]
[341255520,1730729441205,-507.47501738,0.00032876,4]
[341255521,1730729441215,-500.0,0.00032876,4]
[341255522,1730729441224,-500.0,0.00032876,4]
[341255523,1730729441233,-497.46641359,0.00032876,4]
[341255524,1730729441243,-500.0,0.00032876,4]
[341255525,1730729441253,-503.88918322,0.00032876,4]
[341255526,1730729441262,-501.65999352,0.00032876,4]
[341255527,1730729441271,-500.0,0.00032876,4]
[341255528,1730729441281,-500.0,0.00032876,4]
[341255529,1730729441290,-500.0,0.00032876,4]
[341255530,1730729441299,-500.0,0.00032876,4]
[341255531,1730729441308,-500.0,0.00032876,7]
[341255532,1730729441318,-500.0,0.00032876,4]
[341255533,1730729441327,-500.0,0.00032876,4]
[341255534,1730729441336,-500.0,0.00032876,4]
[341255535,1730729441347,-151.0,0.00032876,7]
[341255536,1730729441358,-500.0,0.00032876,4]
[341255537,1730729441379,-503.02156186,0.00032876,4]
[341255538,1730729441388,-500.0,0.00032876,4]
[341255539,1730729441398,-500.0,0.00032876,4]
[341255540,1730729441408,-582.19670787,0.00032876,4]
[341255541,1730729441417,-500.0,0.00032876,4]
[341255542,1730729441430,-520.23687859,0.00032876,4]
[341255543,1730729441440,-341.66171316,0.00032876,4]
[341255544,1730729441450,-500.0,0.00032876,4]
[341255545,1730729441460,-574.68796311,0.00032876,4]
[341255546,1730729441470,-500.0,0.00032876,4]
[341255547,1730729441480,-500.0,0.00032876,4]
[341255548,1730729441490,-500.0,0.00032876,4]
[341255549,1730729441500,-519.85581403,0.00032876,4]
[341255550,1730729441509,-500.0,0.00032876,4]
[341255551,1730729441519,-500.0,0.00032876,4]
[341255552,1730729441529,-504.40857398,0.00032876,4]
[341255553,1730729441538,-500.0,0.00032876,4]
[341255554,1730729441548,-500.0,0.00032876,4]
[341255555,1730729441558,-500.0,0.00032876,4]
[341255556,1730729441568,-214.99295507,0.00032876,4]
[341255557,1730729441577,-500.0,0.00032876,4]
[341255558,1730729441587,-500.0,0.00032876,4]
[341255559,1730729441597,-500.0,0.00032876,4]
[341255560,1730729441606,-513.66244512,0.00032876,4]
[341255561,1730729441617,-503.69225526,0.00032876,4]
[341255562,1730729441627,-502.66991065,0.00032876,4]
[341255563,1730729441636,-519.52678882,0.00032876,4]
[341255564,1730729441646,-269.32135743,0.00032876,4]
[341255565,1730729441655,-500.0,0.00032876,4]
[341255566,1730729441665,-509.24903444,0.00032876,4]
[341255567,1730729441674,-516.88477022,0.00032876,4]
[341255568,1730729441684,-512.62301425,0.00032876,4]
[341255569,1730729441694,-500.0,0.00032876,4]
[341255570,1730729441703,-510.74633642,0.00032876,4]
[341255571,1730729441713,-500.0,0.00032876,4]
[341255572,1730729441722,-502.3761866,0.00032876,4]
[341255573,1730729441732,-500.0,0.00032876,4]
[341255574,1730729441742,-500.0,0.00032876,4]
[341255575,1730729441751,-500.0,0.00032876,4]
[341255576,1730729441760,-500.0,0.00032876,4]
[341255577,1730729441770,-500.0,0.00032876,4]
[341255578,1730729441779,-500.0,0.00032876,4]
[341255579,1730729441789,-633.76435652,0.00032876,4]
[341255580,1730729441798,-500.0,0.00032876,4]
[341255581,1730729441808,-500.0,0.00032876,4]
[341255582,1730729441817,-507.01190168,0.00032876,4]
[341255583,1730729441827,-151.0,0.00032876,7]
[341255584,1730729441837,-517.40022787,0.00032876,4]
[341255585,1730729441848,-151.0,0.00032876,7]
[341255586,1730729441858,-519.95468586,0.00032876,4]
[341255587,1730729441869,-500.0,0.00032876,4]
[341255588,1730729441879,-151.0,0.00032876,7]
[341255589,1730729441888,-151.0,0.00032876,7]
[341255590,1730729441897,-500.0,0.00032876,4]
[341255591,1730729441907,-500.0,0.00032876,4]
[341255592,1730729441916,-500.0,0.00032876,4]
[341255593,1730729442024,-373.82564663,0.00032876,4]
[341255594,1730729442035,-507.79034675,0.00032876,4]
[341255595,1730729442045,-500.0,0.00032876,4]
[341255596,1730729442055,-151.0,0.00032876,7]
[341255597,1730729442064,-151.0,0.00032876,7]
[341255598,1730729442074,-185.211232,0.00032876,7]
[341255599,1730729442083,-500.0,0.00032876,4]
[341255600,1730729442092,-500.0,0.00032876,4]
[341255601,1730729442102,-500.0,0.00032876,4]
[341255602,1730729442111,-500.0,0.00032876,4]
[341255603,1730729442121,-500.0,0.00032876,4]
[341255604,1730729442131,-500.0,0.00032876,4]
[341255605,1730729442140,-507.28254404,0.00032876,4]
[341255606,1730729442149,-525.87137336,0.00032876,4]
[341255607,1730729442159,-531.30250664,0.00032876,4]
[341255608,1730729442168,-508.03536353,0.00032876,4]
[341255609,1730729442177,-500.0,0.00032876,4]
[341255610,1730729442187,-243.47452073,0.00032876,4]
[341255611,1730729442196,-500.0,0.00032876,4]
[341255612,1730729442205,-1000.0,0.00032876,15]
[341255613,1730729442214,-613.84,0.00032876,4]
[341255614,1730729442223,-514.19406691,0.00032876,4]
[341255615,1730729442233,-500.0,0.00032876,4]
[341255616,1730729442243,-459.16745048,0.00032876,4]
[341255617,1730729442253,-294.95366055,0.00032876,4]
[341255618,1730729442262,-1689.25,0.00032876,4]
[341255619,1730729442271,-500.0,0.00032876,4]
[341255621,1730729442281,-500.0,0.00032876,4]
[341255622,1730729442291,-509.68407513,0.00032876,4]
[341255624,1730729442300,-500.0,0.00032876,4]
[341255626,1730729442309,-505.66919763,0.00032876,4]